fUSD/lending_fUSD_20240915
["ID","MTS","AMOUNT","RATE_DAILY","PERIOD"]
[338203315,1726384276348,-1094.37,0.00013812,2]
[338203316,1726384276357,-500.0,0.00013812,2]
[338203317,1726384276367,-500.0,0.00013812,2]
[338203318,1726384276376,-500.0,0.00013812,2]
[338203319,1726384276386,-776.87,0.00013812,2]
[338203320,1726384276395,-500.0,0.00013812,2]
[338203321,1726384276405,-2442.77,0.00013812,2]
[338203322,1726384276414,-500.0,0.00013812,2]
[338203323,1726384276423,-500.0,0.00013812,2]
[338203324,1726384276433,-1849.6,0.00013812,2]
[338203325,1726384276442,-500.0,0.00013812,2]
[338203326,1726384276451,-633.12,0.00013812,2]
[338203327,1726384276461,-500.0,0.00013812,2]
[338203328,1726384276470,-583.51,0.00013812,2]
[338203329,1726384276480,-500.0,0.00013812,2]
[338203330,1726384276489,-500.0,0.00013812,2]
[338203331,1726384276498,-151.0,0.00013812,2]
[338203332,1726384276510,-1821.92,0.00013812,2]
[338203333,1726384276520,-2664.32,0.00013812,2]
[338203334,1726384276529,-500.0,0.00013812,2]
[338203335,1726384276539,-791.47,0.00013812,2]
[338203336,1726384276548,-2101.0,0.00013812,2]
[338203337,1726384276557,-500.0,0.00013812,2]
[338203338,1726384276567,-1740.81,0.00013812,2]
[338203339,1726384276576,-576.29,0.00013812,2]
[338203340,1726384276586,-1145.55,0.00013812,2]
[338203341,1726384276594,-621.4,0.00013812,2]
[338203342,1726384276603,-560.37,0.00013812,2]
[338203343,1726384276613,-500.0,0.00013812,2]
[338203344,1726384276622,-1902.0,0.00013812,2]
[338203345,1726384276631,-500.0,0.00013812,2]
[338203346,1726384276711,-500.0,0.00013812,2]
[338203347,1726384276720,-729.65,0.00013812,2]
[338203348,1726384276729,-1050.52,0.00013812,2]
[338203349,1726384276738,-816.91,0.00013812,2]
[338203350,1726384276747,-500.0,0.00013812,2]
[338203351,1726384276757,-150.0,0.00013812,2]
[338203352,1726384276766,-500.0,0.00013812,2]
[338203353,1726384276775,-1869.52,0.00013812,2]
[338203354,1726384276785,-963.07,0.00013812,2]
[338203355,1726384276795,-1410.39,0.00013812,2]
[338203356,1726384276804,-500.0,0.00013812,2]
[338203357,1726384276814,-901.38,0.00013812,2]
[338203358,1726384276823,-767.88,0.00013812,2]
[338203359,1726384276832,-500.0,0.00013812,2]
[338203360,1726384276842,-500.0,0.00013812,2]
[338203361,1726384276853,-1158.27,0.00013812,2]
[338203362,1726384276863,-591.0,0.00013812,2]
[338203363,1726384276872,-673.83,0.00013812,2]
[338203364,1726384276881,-752.18,0.00013812,2]
[338203365,1726384276890,-559.69,0.00013812,2]
[338203366,1726384276900,-577.75,0.00013812,2]
[338203367,1726384276911,-1372.2,0.00013812,2]
[338203368,1726384276921,-1569.17,0.00013812,2]
[338203369,1726384276930,-500.0,0.00013813,2]
[338203370,1726384276940,-796.0,0.00013821,2]
[338203371,1726384276950,-245.38,0.00013836,2]
[338203372,1726384276959,-34913.36900666,0.00013846,2]
[338203373,1726384276968,-892.15,0.00013882,2]
[338203374,1726384276980,-500.0,0.00013882,2]
[338203375,1726384276990,-1327.12,0.00013882,2]
[338203376,1726384277000,-1991.31,0.00013882,2]
[338203377,1726384277010,-152.0,0.00013886,2]
[338203378,1726384277019,-201.0,0.000139,2]
[338203379,1726384277029,-1000.0,0.000139,4]
[338203380,1726384277039,-1000.0,0.000139,3]
[338203381,1726384277050,-151.0,0.000139,2]
[338203382,1726384277060,-326.600268,0.000139,2]
[338203383,1726384277069,-326.600261,0.000139,2]
[338203384,1726384277078,-1738.44999,0.0001392,2]
[338203385,1726384277087,-2612.13,0.00013982,2]
[338203386,1726384277096,-2142.44,0.00013982,2]
[338203387,1726384277105,-2259.49,0.00013982,2]
[338203388,1726384277114,-3198.65,0.00013982,2]
[338203389,1726384277125,-513.55,0.00013982,2]
[338203390,1726384277135,-1010.42,0.00013982,2]
[338203391,1726384277149,-2040.62,0.00013982,2]
[338203392,1726384277158,-2576.49,0.00013982,2]
[338203393,1726384277167,-1924.95,0.00013982,2]
[338203394,1726384277177,-7593.37,0.00013982,2]
[338203395,1726384277187,-3777.3,0.00013982,2]
[338203396,1726384277197,-2400.38,0.00013982,2]
[338203397,1726384277206,-3502.82,0.00013982,2]
[338203398,1726384277218,-2274.51,0.00013982,2]
[338203399,1726384277228,-1431.78,0.00013982,2]
[338203400,1726384277237,-1554.09,0.00013982,2]
[338203401,1726384277247,-643.4,0.00013982,2]
[338203402,1726384277256,-726.28,0.00013982,2]
[338203403,1726384277266,-1455.09,0.00013982,2]
[338203404,1726384277276,-34913.36900666,0.00013983,2]
[338203405,1726384277285,-152.0,0.00013989,4]
[338203406,1726384277294,-600000.0,0.00014,2]
[338203407,1726384277303,-401.26474782,0.00014,2]
[338203408,1726384277314,-151.0,0.00014,2]
[338203409,1726384277325,-151.0,0.00014,2]
[338203410,1726384277334,-150.0,0.00014,5]
[338203411,1726384277343,-1000.0,0.00014019,2]
[338203412,1726384277352,-406.44,0.00014042,2]
[338203413,1726384277362,-153.966,0.00014056,2]
[338203414,1726384277371,-500.0,0.00014056,2]
[338203415,1726384277380,-500.0,0.00014065,2]
[338203416,1726384277389,-29359.141796,0.00014073,2]
[338203417,1726384277398,-5028.2054433,0.00014073,2]
[338203418,1726384277407,-20210.3116437,0.00014073,2]
[338203419,1726384277416,-2486.2563884,0.00014073,2]
[338203420,1726384277426,-2169.6698037,0.00014073,2]
[338203421,1726384277434,-6524.1228134,0.00014073,2]
[338203422,1726384277444,-1061.5737222,0.00014073,2]
[338203423,1726384277453,-1051.0961608,0.00014073,2]
[338203424,1726384277462,-500.0,0.00014074,2]
[338203425,1726384277472,-201.0,0.0001408,2]
[338203426,1726384277481,-1617.81,0.00014082,2]
[338203427,1726384277492,-669.37,0.00014082,2]
[338203428,1726384277502,-35123.66,0.00014082,2]
[338203429,1726384277511,-2816.45,0.00014082,2]
[338203430,1726384277521,-1751.71,0.00014082,2]
[338203431,1726384277530,-749.92,0.00014082,2]
[338203432,1726384277539,-1762.77,0.00014082,2]
[338203433,1726384277548,-1211.63,0.00014082,2]
[338203434,1726384277557,-2067.45,0.00014082,2]
[338203435,1726384277566,-4082.75,0.00014082,2]
[338203436,1726384277576,-2802.8,0.00014082,2]
[338203437,1726384277586,-6431.45,0.00014082,2]
[338203438,1726384277595,-500.0,0.00014082,2]
[338203439,1726384277605,-1193.29,0.00014083,2]
[338203440,1726384277614,-1622.18,0.00014083,2]
[338203441,1726384277624,-282.81574996,0.00014083,2]
[338203442,1726384277634,-1114.1,0.00014083,2]
[338203443,1726384277644,-2473.14,0.00014083,2]
[338203444,1726384277653,-500.0,0.00014083,2]
[338203445,1726384277663,-500.0,0.00014083,2]
[338203446,1726384277672,-763.18,0.00014083,2]
[338203447,1726384277683,-2641.77,0.00014083,2]
[338203448,1726384277692,-500.0,0.00014083,2]
[338203449,1726384277702,-524.8091762,0.00014083,2]
[338203450,1726384277712,-500.0,0.00014083,2]
[338203451,1726384277722,-1385.34,0.00014083,2]
[338203452,1726384277731,-2337.06,0.00014083,2]
[338203453,1726384277741,-1308.81,0.00014083,2]
[338203454,1726384277751,-500.0,0.00014083,2]
[338203455,1726384277761,-500.0,0.00014083,2]
[338203456,1726384277770,-3482.22,0.00014083,2]
[338203457,1726384277780,-500.0,0.00014083,2]
[338203458,1726384277791,-1780.69,0.00014083,2]
[338203459,1726384277800,-851.26,0.00014083,2]
[338203460,1726384277811,-500.0,0.00014083,2]
[338203461,1726384277820,-1609.35,0.00014083,2]
[338203462,1726384277830,-500.0,0.00014083,2]
[338203463,1726384277840,-762.47,0.00014083,2]
[338203464,1726384277849,-500.0,0.00014083,2]
[338203465,1726384277859,-1864.22,0.00014083,2]
[338203466,1726384277869,-444.6260746,0.00014083,2]
[338203467,1726384277879,-2095.35,0.00014083,2]
[338203468,1726384277888,-4443.52,0.00014083,2]
[338203469,1726384277900,-500.0,0.00014083,2]
[338203470,1726384277910,-2011.54,0.00014083,2]
[338203471,1726384277920,-1302.52,0.00014083,2]
[338203472,1726384277930,-500.0,0.00014083,2]
[338203473,1726384277940,-500.0,0.00014083,2]
[338203474,1726384277950,-737.59,0.00014083,2]
[338203475,1726384277961,-852.99,0.00014083,2]
[338203476,1726384277970,-2650.81,0.00014083,2]
[338203477,1726384277980,-1974.55,0.00014083,2]
[338203478,1726384277989,-500.0,0.00014083,2]
[338203479,1726384277998,-500.0,0.00014083,2]
[338203480,1726384278009,-500.0,0.00014083,2]
[338203481,1726384278018,-500.0,0.00014083,2]
[338203482,1726384278028,-601.69,0.00014083,2]
[338203483,1726384278037,-519.7,0.00014083,2]
[338203484,1726384278047,-1283.13,0.00014083,2]
[338203485,1726384278057,-744.0,0.00014083,2]
[338203486,1726384278066,-894.31,0.00014083,2]
[338203487,1726384278076,-1145.09,0.00014083,2]
[338203488,1726384278085,-500.0,0.00014083,2]
[338203489,1726384278095,-709.45,0.00014083,2]
[338203490,1726384278104,-500.0,0.00014083,2]
[338203491,1726384278114,-511.46,0.00014083,2]
[338203492,1726384278124,-836.9,0.00014083,2]
[338203493,1726384278134,-500.0,0.00014083,2]
[338203494,1726384278147,-2075.22,0.00014083,2]
[338203495,1726384278157,-902.45,0.00014083,2]
[338203496,1726384278167,-2120.69,0.00014083,2]
[338203497,1726384278177,-1755.42,0.00014083,2]
[338203498,1726384278186,-1023.95,0.00014083,2]
[338203499,1726384278196,-500.0,0.00014083,2]
[338203500,1726384278206,-1046.03,0.00014083,2]
[338203501,1726384278215,-500.0,0.00014083,2]
[338203502,1726384278226,-500.0,0.00014083,2]
[338203503,1726384278236,-500.0,0.00014083,2]
[338203504,1726384278245,-1560.2,0.00014083,2]
[338203505,1726384278255,-500.0,0.00014083,2]
[338203506,1726384278265,-500.0,0.00014083,2]
[338203507,1726384278275,-500.0,0.00014083,2]
[338203508,1726384278285,-500.0,0.00014083,2]
[338203509,1726384278295,-1566.56,0.00014083,2]
[338203510,1726384278305,-1747.39,0.00014083,2]
[338203511,1726384278314,-500.0,0.00014083,2]
[338203512,1726384278324,-500.0,0.00014083,2]
[338203513,1726384278334,-500.0,0.00014083,2]
[338203514,1726384278344,-427.63290219,0.00014083,2]
[338203515,1726384278355,-892.45,0.00014083,2]
[338203516,1726384278365,-500.0,0.00014083,2]
[338203517,1726384278374,-735.78,0.00014083,2]
[338203518,1726384278385,-571.19,0.00014083,2]
[338203519,1726384278395,-500.0,0.00014083,2]
[338203520,1726384278405,-947.65,0.00014083,2]
[338203521,1726384278415,-500.0,0.00014083,2]
[338203522,1726384278425,-500.0,0.00014083,2]
[338203523,1726384278434,-500.0,0.00014083,2]
[338203524,1726384278444,-265.9661946,0.00014083,2]
[338203525,1726384278454,-500.0,0.00014083,2]
[338203526,1726384278464,-500.0,0.00014083,2]
[338203527,1726384278474,-500.0,0.00014083,2]
[338203528,1726384278484,-1036.25,0.00014083,2]
[338203529,1726384278493,-500.0,0.00014083,2]
[338203530,1726384278503,-500.0,0.00014083,2]
[338203531,1726384278513,-500.0,0.00014083,2]
[338203532,1726384278523,-2093.32,0.00014083,2]
[338203533,1726384278533,-500.0,0.00014083,2]
[338203534,1726384278543,-623.98,0.00014083,2]
[338203535,1726384278553,-500.0,0.00014083,2]
[338203536,1726384278562,-500.0,0.00014083,2]
[338203537,1726384278573,-500.0,0.00014083,2]
[338203538,1726384278584,-500.0,0.00014083,2]
[338203539,1726384278594,-500.0,0.00014083,2]
[338203540,1726384278604,-504.45,0.00014083,2]
[338203541,1726384278614,-500.0,0.00014083,2]
[338203542,1726384278624,-500.0,0.00014083,2]
[338203543,1726384278633,-500.0,0.00014083,2]
[338203544,1726384278643,-502.38022861,0.00014083,2]
[338203545,1726384278653,-500.0,0.00014083,2]
[338203546,1726384278662,-500.0,0.00014083,2]
[338203547,1726384278672,-501.47522318,0.00014083,2]
[338203548,1726384278682,-500.0,0.00014083,2]
[338203549,1726384278692,-500.0,0.00014083,2]
[338203550,1726384278702,-1818.97,0.00014083,2]
[338203551,1726384278712,-2300.0,0.00014083,2]
[338203552,1726384278722,-551.65,0.00014083,2]
[338203553,1726384278732,-623.94,0.00014083,2]
[338203554,1726384278742,-500.0,0.00014083,2]
[338203555,1726384278752,-500.0,0.00014083,2]
[338203556,1726384278762,-1981.5,0.00014083,2]
[338203557,1726384278772,-500.0,0.00014083,2]
[338203558,1726384278782,-850.82,0.00014083,2]
[338203559,1726384278791,-1273.76,0.00014083,2]
[338203560,1726384278801,-500.0,0.00014083,2]
[338203561,1726384278811,-550.95,0.00014083,2]
[338203562,1726384278821,-777.07,0.00014083,2]
[338203563,1726384278831,-1159.13,0.00014083,2]
[338203564,1726384278841,-1474.94,0.00014083,2]
[338203565,1726384278850,-500.0,0.00014083,2]
[338203566,1726384278861,-559.73,0.00014083,2]
[338203567,1726384278871,-719.19,0.00014083,2]
[338203568,1726384278881,-2610.8,0.00014083,2]
[338203569,1726384278891,-500.0,0.00014083,2]
[338203570,1726384278901,-738.9,0.00014083,2]
[338203571,1726384278911,-1184.26,0.00014083,2]
[338203572,1726384278921,-1079.19,0.00014083,2]
[338203573,1726384278931,-1624.73,0.00014083,2]
[338203574,1726384278941,-500.0,0.00014083,2]
[338203575,1726384278950,-494.66846044,0.00014083,2]
[338203576,1726384278961,-500.0,0.00014083,2]
[338203577,1726384278971,-500.0,0.00014083,2]
[338203578,1726384278980,-686.14,0.00014083,2]
[338203579,1726384278991,-1209.79,0.00014083,2]
[338203580,1726384279000,-271.37696076,0.00014083,2]
[338203581,1726384279013,-576.58,0.00014083,2]
[338203582,1726384279023,-1332.15,0.00014083,2]
[338203583,1726384279033,-1855.53,0.00014083,2]
[338203584,1726384279043,-536.83,0.00014083,2]
[338203585,1726384279054,-1491.5,0.00014083,2]
[338203586,1726384279064,-500.0,0.00014083,2]
[338203587,1726384279074,-500.0,0.00014083,2]
[338203588,1726384279084,-500.0,0.00014083,2]
[338203589,1726384279094,-1071.58,0.00014083,2]
[338203590,1726384279105,-533.058498,0.00014083,2]
[338203591,1726384279115,-1507.93,0.00014083,2]
[338203592,1726384279125,-680.2,0.00014083,2]
[338203593,1726384279136,-1870.89,0.00014083,2]
[338203594,1726384279149,-995.68,0.00014083,2]
[338203595,1726384279159,-576.77589716,0.00014083,2]
[338203596,1726384279169,-500.0,0.00014083,2]
[338203597,1726384279180,-2007.69,0.00014083,2]
[338203598,1726384279190,-500.0,0.00014083,2]
[338203599,1726384279200,-1025.69,0.00014083,2]
[338203600,1726384279210,-2714.33,0.00014083,2]
[338203601,1726384279222,-1496.95,0.00014083,2]
[338203602,1726384279233,-500.0,0.00014083,2]
[338203603,1726384279243,-686.14,0.00014083,2]
[338203604,1726384279253,-1122.46,0.00014083,2]
[338203605,1726384279263,-1166.0,0.00014083,2]
[338203606,1726384279273,-500.0,0.00014083,2]
[338203607,1726384279284,-500.0,0.00014083,2]
[338203608,1726384279294,-2008.29,0.00014083,2]
[338203609,1726384279304,-879.6,0.00014083,2]
[338203610,1726384279314,-500.0,0.00014083,2]
[338203611,1726384279324,-6593.78,0.00014083,2]
[338203612,1726384279334,-3363.1,0.00014083,2]
[338203613,1726384279344,-500.0,0.00014083,2]
[338203614,1726384279354,-1398.28,0.00014083,2]
[338203615,1726384279364,-3795.44,0.00014083,2]
[338203616,1726384279374,-3563.34,0.00014083,2]
[338203617,1726384279385,-618.44,0.00014083,2]
[338203618,1726384279395,-1399.32,0.00014083,2]
[338203619,1726384279405,-634.33,0.00014083,2]
[338203620,1726384279415,-587.57,0.00014083,2]
[338203621,1726384279425,-2372.05,0.00014083,2]
[338203622,1726384279435,-5675.17,0.00014083,2]
[338203623,1726384279445,-500.0,0.00014083,2]
[338203624,1726384279456,-5967.21,0.00014083,2]
[338203625,1726384279467,-9607.36,0.00014083,2]
[338203626,1726384279477,-500.0,0.00014083,2]
[338203627,1726384279488,-911.34,0.00014083,2]
[338203628,1726384279498,-500.0,0.00014083,2]
[338203629,1726384279667,-2350.58,0.00014083,2]
[338203630,1726384279698,-1309.57,0.00014083,2]
[338203631,1726384279708,-2999.57,0.00014083,2]
[338203632,1726384279717,-2196.79,0.00014083,2]
[338203633,1726384279727,-1440.36,0.00014083,2]
[338203634,1726384279737,-1752.98,0.00014083,2]
[338203635,1726384279747,-500.0,0.00014083,2]
[338203636,1726384279758,-4652.42,0.00014083,2]
[338203637,1726384279767,-500.0,0.00014083,2]
[338203638,1726384279776,-496.56,0.00014083,2]
[338203639,1726384279786,-722.76,0.00014083,2]
[338203640,1726384279797,-880.15,0.00014083,2]
[338203641,1726384279806,-500.0,0.00014083,2]
[338203642,1726384279817,-4769.21,0.00014083,2]
[338203643,1726384279826,-5547.07,0.00014083,2]
[338203644,1726384279836,-500.0,0.00014083,2]
[338203645,1726384279845,-6423.75,0.00014083,2]
[338203646,1726384279855,-1882.2,0.00014083,2]
[338203647,1726384279864,-500.0,0.00014083,2]
[338203648,1726384279874,-500.0,0.00014083,2]
[338203649,1726384279884,-2009.09,0.00014083,2]
[338203650,1726384279893,-500.0,0.00014083,2]
[338203651,1726384279902,-500.0,0.00014083,2]
[338203652,1726384279912,-1771.78,0.00014083,2]
[338203653,1726384279921,-1366.88,0.00014083,2]
[338203654,1726384279931,-500.0,0.00014083,2]
[338203655,1726384279941,-500.0,0.00014083,2]
[338203656,1726384279951,-1268.81,0.00014083,2]
[338203657,1726384279961,-500.0,0.00014083,2]
[338203658,1726384279970,-500.0,0.00014083,2]
[338203659,1726384279981,-2352.5,0.00014083,2]
[338203660,1726384279992,-1652.18,0.00014083,2]
[338203661,1726384280002,-1213.6,0.00014083,2]
[338203662,1726384280011,-352.19386606,0.00014083,2]
[338203663,1726384280022,-4744.92,0.00014083,2]
[338203664,1726384280032,-500.0,0.00014083,2]
[338203665,1726384280043,-858.79,0.00014083,2]
[338203666,1726384280053,-1763.84,0.00014083,2]
[338203667,1726384280062,-500.0,0.00014083,2]
[338203668,1726384280071,-500.0,0.00014083,2]
[338203669,1726384280081,-561.52,0.00014083,2]
[338203670,1726384280091,-532.88,0.00014083,2]
[338203671,1726384280100,-500.0,0.00014083,2]
[338203672,1726384280110,-1980.91,0.00014083,2]
[338203673,1726384280119,-500.0,0.00014083,2]
[338203674,1726384280128,-645.72,0.00014083,2]
[338203675,1726384280138,-2185.22,0.00014083,2]
[338203676,1726384280149,-2303.92,0.00014083,2]
[338203677,1726384280158,-905.03,0.00014083,2]
[338203678,1726384280167,-559.17,0.00014083,2]
[338203679,1726384280176,-500.0,0.00014083,2]
[338203680,1726384280187,-1327.08,0.00014083,2]
[338203681,1726384280198,-1127.6,0.00014083,2]
[338203682,1726384280209,-1484.26,0.00014083,2]
[338203683,1726384280220,-500.0,0.00014083,2]
[338203684,1726384280231,-500.0,0.00014083,2]
[338203685,1726384280242,-500.0,0.00014083,2]
[338203686,1726384280252,-500.0,0.00014083,2]
[338203687,1726384280262,-1203.43,0.00014083,2]
[338203688,1726384280272,-1047.41,0.00014083,2]
[338203689,1726384280284,-1417.01,0.00014083,2]
[338203690,1726384280293,-1171.91,0.00014083,2]
[338203691,1726384280304,-2562.29,0.00014083,2]
[338203692,1726384280313,-500.0,0.00014083,2]
[338203693,1726384280325,-726.95,0.00014083,2]
[338203694,1726384280336,-751.56,0.00014083,2]
[338203695,1726384280346,-3668.07,0.00014083,2]
[338203696,1726384280356,-2452.76,0.00014083,2]
[338203697,1726384280366,-500.0,0.00014083,2]
[338203698,1726384280376,-999.5,0.00014083,2]
[338203699,1726384280387,-838.89,0.00014083,2]
[338203700,1726384280396,-2605.37,0.00014083,2]
[338203701,1726384280407,-500.0,0.00014083,2]
[338203702,1726384280417,-894.42,0.00014083,2]
[338203703,1726384280428,-2126.69,0.00014083,2]
[338203704,1726384280437,-500.0,0.00014083,2]
[338203705,1726384280447,-500.0,0.00014083,2]
[338203706,1726384280457,-500.0,0.00014083,2]
[338203707,1726384280467,-873.43,0.00014083,2]
[338203708,1726384280478,-500.0,0.00014083,2]
[338203709,1726384280488,-500.0,0.00014083,2]
[338203710,1726384280499,-6520.27,0.00014083,2]
[338203711,1726384280509,-1477.1,0.00014083,2]
[338203712,1726384280519,-738.8,0.00014083,2]
[338203713,1726384280528,-530.93,0.00014083,2]
[338203714,1726384280538,-500.0,0.00014083,2]
[338203715,1726384280549,-500.0,0.00014083,2]
[338203716,1726384280559,-1935.24,0.00014083,2]
[338203717,1726384280570,-500.0,0.00014083,2]
[338203718,1726384280579,-525.94,0.00014083,2]
[338203719,1726384280590,-2177.94,0.00014083,2]
[338203720,1726384280599,-3704.82,0.00014083,2]
[338203721,1726384280609,-639.32632768,0.00014083,2]
[338203722,1726384280619,-500.0,0.00014083,2]
[338203723,1726384280630,-500.0,0.00014083,2]
[338203724,1726384280641,-500.0,0.00014083,2]
[338203725,1726384280651,-500.0,0.00014083,2]
[338203726,1726384280661,-1686.28,0.00014083,2]
[338203727,1726384280671,-3664.87,0.00014083,2]
[338203728,1726384280680,-1803.74,0.00014083,2]
[338203729,1726384280690,-500.0,0.00014083,2]
[338203730,1726384280701,-2582.77,0.00014083,2]
[338203731,1726384280711,-550.94,0.00014083,2]
[338203732,1726384280721,-1078.69,0.00014083,2]
[338203733,1726384280731,-500.0,0.00014083,2]
[338203734,1726384280740,-500.0,0.00014083,2]
[338203735,1726384280750,-1390.83,0.00014083,2]
[338203736,1726384280761,-396.16,0.00014083,2]
[338203737,1726384280770,-2034.27,0.00014083,2]
[338203738,1726384280779,-1804.06,0.00014083,2]
[338203739,1726384280788,-500.0,0.00014083,2]
[338203740,1726384280798,-13294.01,0.00014083,2]
[338203741,1726384280807,-500.0,0.00014083,2]
[338203742,1726384280816,-500.0,0.00014083,2]
[338203743,1726384280826,-1139.64,0.00014083,2]
[338203744,1726384280836,-1060.35,0.00014083,2]
[338203745,1726384280845,-500.0,0.00014083,2]
[338203746,1726384280855,-1990.15,0.00014083,2]
[338203747,1726384280865,-500.0,0.00014083,2]
[338203748,1726384280875,-4515.09,0.00014083,2]
[338203749,1726384280885,-764.6,0.00014083,2]
[338203750,1726384280895,-1978.69,0.00014083,2]
[338203751,1726384280904,-500.0,0.00014083,2]
[338203752,1726384280914,-500.0,0.00014083,2]
[338203753,1726384280924,-1014.72,0.00014083,2]
[338203754,1726384280933,-500.0,0.00014083,2]
[338203755,1726384280943,-2497.97,0.00014083,2]
[338203756,1726384280952,-500.0,0.00014083,2]
[338203757,1726384280962,-1221.09,0.00014083,2]
[338203758,1726384280971,-2054.15,0.00014083,2]
[338203759,1726384280981,-500.0,0.00014083,2]
[338203760,1726384280991,-3904.4,0.00014083,2]
[338203761,1726384281000,-505.38,0.00014083,2]
[338203762,1726384281010,-421.39989442,0.00014083,2]
[338203763,1726384281020,-2985.22,0.00014083,2]
[338203764,1726384281029,-500.0,0.00014083,2]
[338203765,1726384281038,-789.97,0.00014083,2]
[338203766,1726384281047,-625.37,0.00014083,2]
[338203767,1726384281058,-3735.63,0.00014083,2]
[338203768,1726384281068,-2832.75,0.00014084,2]
[338203769,1726384281077,-953.76,0.00014084,2]
[338203770,1726384281088,-640.98,0.00014084,2]
[338203771,1726384281098,-1204.95,0.00014084,2]
[338203772,1726384281108,-2625.19,0.00014084,2]
[338203773,1726384281118,-2605.3,0.00014084,2]
[338203774,1726384281135,-1975.92,0.00014084,2]
[338203775,1726384281151,-791.61,0.00014084,2]
[338203776,1726384281161,-1754.39,0.00014084,2]
[338203777,1726384281170,-2067.84,0.00014084,2]
[338203778,1726384281179,-500.0,0.00014084,2]
[338203779,1726384281191,-3124.63,0.00014084,2]
[338203780,1726384281201,-639.99,0.00014084,2]
[338203781,1726384281210,-500.0,0.00014084,2]
[338203782,1726384281221,-2020.13,0.00014084,2]
[338203783,1726384281232,-500.0,0.00014084,2]
[338203784,1726384281243,-2053.48,0.00014084,2]
[338203785,1726384281253,-500.0,0.00014084,2]
[338203786,1726384281263,-2899.53,0.00014084,2]
[338203787,1726384281273,-1665.23,0.00014084,2]
[338203788,1726384281283,-1000.0,0.00014084,2]
[338203789,1726384281292,-2360.26,0.00014084,2]
[338203790,1726384281301,-2536.38,0.00014084,2]
[338203791,1726384281311,-501.45938055,0.00014084,2]
[338203792,1726384281320,-1542.94,0.00014084,2]
[338203793,1726384281329,-1039.1,0.00014084,2]
[338203794,1726384281338,-500.0,0.00014084,2]
[338203795,1726384281348,-1961.41,0.00014084,2]
[338203796,1726384281357,-254.75,0.00014084,2]
[338203797,1726384281366,-1089.19,0.00014084,2]
[338203798,1726384281375,-1781.57,0.00014084,2]
[338203799,1726384281385,-2177.23,0.00014084,2]
[338203800,1726384281394,-2243.27,0.00014084,2]
[338203801,1726384281403,-751.74,0.00014084,2]
[338203802,1726384281412,-819.71,0.00014084,2]
[338203803,1726384281422,-871.98,0.00014084,2]
[338203804,1726384281431,-526.05809451,0.00014084,2]
[338203805,1726384281440,-503.66569548,0.00014084,2]
[338203806,1726384281449,-1526.93,0.00014084,2]
[338203807,1726384281458,-500.0,0.00014084,2]
[338203808,1726384281467,-500.0,0.00014084,2]
[338203809,1726384281476,-866.88,0.00014084,2]
[338203810,1726384281486,-1608.49,0.00014084,2]
[338203811,1726384281495,-1483.45,0.00014084,2]
[338203812,1726384281504,-1146.24,0.00014084,2]
[338203813,1726384281514,-500.0,0.00014084,2]
[338203814,1726384281523,-2765.55,0.00014084,2]